[Event "22nd Hoogeveen Open 2018"]
[Site "Hoogeveen"]
[Date "2018.10.24"]
[Round "6"]
[White "Van Foreest, Machteld"]
[Black "Brands, Kevin"]
[Result "1-0"]
[ECO "B94"]
[WhiteElo "1934"]
[BlackElo "1862"]
[Annotator "NA"]
[PlyCount "33"]
[EventDate "2018.10.20"]
[EventType "swiss"]
[EventCountry "NED"]
[SourceTitle "playchess.com"]
[Source "ChessBase"]
[SourceQuality "1"]
[TimeControl "40/5400+30:1800+30"]

1. e4 {[%emt 0:00:00]} c5 {[%emt 0:00:00]} 2. Nf3 {[%emt 0:00:00]} d6 {[%emt 0:00:00]} 3. d4 {[%emt 0:00:00]} cxd4 {[%emt 0:00:00]} 4. Nxd4 {[%emt 0:00:00]} Nf6 {[%emt 0:00:00]} 5. Nc3 {[%emt 0:00:00]} a6 {[%emt 0:00:00]} 6. Bg5 {[%emt 0:00:00]} Nbd7 {[%emt 0:00:00]} 7. Qe2 {[%emt 0:00:00]} b5 {[%emt 0:00:07]} 8. O-O-O {[%emt 0:04:29]} Bb7 {[%emt 0:05:53]} 9. Bxf6 {[%emt 0:02:45] LiveBook: 5 Games} Nxf6 {[%emt 0:01:22]} 10. e5 {[%emt 0:02:11]} b4 $2 {[%emt 0:03:44]} (10... dxe5 $11 11. Ndxb5 (11. Qxe5 Qb8 $11) 11... Nd7) 11. exf6 {[%emt 0:01:56]} bxc3 {[%emt 0:01:33]} 12. Nf5 $18 {[%emt 0:01:45]} e6 {[%emt 0:12:09]} 13. fxg7 {[%emt 0:01:50]} Qg5+ {[%emt 0:00:41]} 14. Qe3 {[%emt 0:01:10]} cxb2+ {[%emt 0:05:43]} 15. Kb1 {[%emt 0:00:56]} Qxe3 {[%emt 0:00:17]} 16. gxh8=Q {[%emt 0:01:30]} Qa7 {[%emt 0:01:52]} 17. Nxd6+ {[%emt 0:00:28]} 1-0

[Event "22nd Hoogeveen Open 2018"]
[Site "Hoogeveen"]
[Date "2018.10.24"]
[Round "6"]
[White "Emans, Job"]
[Black "Mellema, Andries"]
[Result "1/2-1/2"]
[ECO "A59"]
[WhiteElo "1927"]
[BlackElo "2140"]
[Annotator "NA"]
[PlyCount "146"]
[EventDate "2018.10.20"]
[EventType "swiss"]
[EventCountry "NED"]
[SourceTitle "playchess.com"]
[Source "ChessBase"]
[SourceQuality "1"]
[TimeControl "40/5400+30:1800+30"]

1. d4 {[%emt 0:00:00]} Nf6 {[%emt 0:00:16]} 2. c4 {[%emt 0:00:00]} c5 {[%emt 0:00:07]} 3. d5 {[%emt 0:00:00]} b5 {[%emt 0:00:04]} 4. cxb5 {[%emt 0:00:05]} a6 {[%emt 0:00:10]} 5. bxa6 {[%emt 0:00:08]} g6 {[%emt 0:00:10]} 6. Nc3 {[%emt 0:00:08]} Bxa6 {[%emt 0:00:22]} 7. e4 {[%emt 0:00:13]} Bxf1 {[%emt 0:00:41]} 8. Kxf1 {[%emt 0:00:07]} d6 {[%emt 0:00:05]} 9. g3 {[%emt 0:00:11]} Bg7 {[%emt 0:00:06]} 10. Kg2 {[%emt 0:00:06]} O-O {[%emt 0:00:05]} 11. Nf3 {[%emt 0:00:06]} Nbd7 {[%emt 0:00:03]} 12. Re1 {[%emt 0:00:20]} Ng4 {[%emt 0:07:10] LiveBook: 169 Games} 13. a4 $14 {[%emt 0:02:19]} Nde5 {[%emt 0:18:31]} 14. Nxe5 {[%emt 0:02:24]} Nxe5 {[%emt 0:02:07]} 15. Qc2 {[%emt 0:00:14]} Qa5 {[%emt 0:08:18]} 16. Bd2 {[%emt 0:13:30]} Nc4 {[%emt 0:02:30]} 17. Nb1 {[%emt 0:00:20]} Nxd2 {[%emt 0:04:29]} 18. Nxd2 {[%emt 0:00:16]} Rfb8 {[%emt 0:01:22]} 19. Nc4 {[%emt 0:04:09]} Qa6 {[%emt 0:03:55]} 20. Ra3 {[%emt 0:09:14]} Rb4 {[%emt 0:03:01]} 21. b3 {[%emt 0:00:10]} Rab8 {[%emt 0:00:30]} 22. Kh1 {[%emt 0:18:41]} e6 {[%emt 0:14:58]} 23. Re2 {[%emt 0:09:24]} Bd4 {[%emt 0:08:07]} 24. Kg1 {[%emt 0:09:53]} Rd8 {[%emt 0:10:51]} 25. Qd3 {[%emt 0:01:59]} exd5 {[%emt 0:06:11]} 26. exd5 {[%emt 0:00:06]} Qb7 {[%emt 0:00:30]} 27. Qf3 {[%emt 0:00:26]} Qa7 {[%emt 0:03:11]} 28. a5 {[%emt 0:08:17]} Rb7 {[%emt 0:02:07]} 29. a6 {[%emt 0:00:39]} Re7 {[%emt 0:01:16]} 30. Rxe7 {[%emt 0:00:48]} Qxe7 {[%emt 0:00:01]} 31. Kg2 {[%emt 0:06:49]} Qa7 {[%emt 0:00:56]} 32. Qe2 {[%emt 0:00:20]} Qa8 {[%emt 0:00:50]} 33. a7 {[%emt 0:02:40]} Qb7 {[%emt 0:02:26]} 34. Nxd6 {[%emt 0:02:00]} Qxd5+ {[%emt 0:00:08]} 35. Qf3 {[%emt 0:00:10]} Qxd6 {[%emt 0:00:11]} 36. a8=Q {[%emt 0:00:14]} Rxa8 {[%emt 0:00:08]} 37. Rxa8+ {[%emt 0:00:03]} Kg7 {[%emt 0:00:15]} 38. Ra7 {[%emt 0:01:14]} Qe6 {[%emt 0:00:16]} 39. Ra4 {[%emt 0:00:45]} Qd6 {[%emt 0:02:10]} 40. Rc4 {[%emt 0:00:58]} Qe5 {[%emt 0:00:45]} 41. Rc2 {[%emt 0:35:02]} Qd6 {[%emt 0:05:43]} 42. Qe4 {[%emt 0:00:00]} Qf6 {[%emt 0:06:13]} 43. Qd5 {[%emt 0:00:00]} h5 {[%emt 0:05:54]} 44. f3 {[%emt 0:00:00]} Qa6 {[%emt 0:03:04]} 45. b4 {[%emt 0:00:00]} Qa4 {[%emt 0:06:06]} 46. Rxc5 {[%emt 0:00:00]} Qd1 {[%emt 0:03:39]} 47. Rc1 {[%emt 0:00:00]} Qd2+ {[%emt 0:02:12]} 48. Kh3 {[%emt 0:00:00]} Qxc1 {[%emt 0:00:25]} 49. Qxd4+ {[%emt 0:00:00]} Kg8 {[%emt 0:00:38]} 50. Qd3 {[%emt 0:00:00]} Qb2 {[%emt 0:01:01]} 51. b5 {[%emt 0:00:00]} Qe5 {[%emt 0:00:32]} 52. Qc4 {[%emt 0:00:00]} Qf5+ {[%emt 0:00:37]} 53. Kg2 {[%emt 0:00:00]} Qf6 {[%emt 0:00:21]} 54. Qc5 {[%emt 0:00:00]} Qb2+ {[%emt 0:00:15]} 55. Kh3 {[%emt 0:00:00]} Qb1 {[%emt 0:00:22]} 56. Qc6 {[%emt 0:00:00]} Qf1+ {[%emt 0:00:57]} 57. Kh4 {[%emt 0:00:00]} Qe2 {[%emt 0:00:15]} 58. b6 {[%emt 0:01:32]} Kg7 {[%emt 0:00:49]} 59. Qc3+ {[%emt 0:06:44]} f6 {[%emt 0:00:17]} 60. h3 {[%emt 0:00:09]} Qe6 {[%emt 0:00:15]} 61. f4 {[%emt 0:05:18]} Qxb6 {[%emt 0:01:00]} 62. Qf3 {[%emt 0:00:30]} Kh6 {[%emt 0:00:27]} 63. g4 {[%emt 0:00:10]} g5+ {[%emt 0:00:26]} 64. fxg5+ {[%emt 0:00:13]} fxg5+ {[%emt 0:00:13]} 65. Kg3 {[%emt 0:00:08]} Qg1+ {[%emt 0:00:26]} 66. Qg2 {[%emt 0:00:16]} h4+ {[%emt 0:00:20]} 67. Kf3 {[%emt 0:00:03]} Qd4 {[%emt 0:00:19]} 68. Qc2 {[%emt 0:00:34]} Qf4+ {[%emt 0:00:34]} 69. Ke2 {[%emt 0:00:42]} Qe5+ {[%emt 0:01:06]} 70. Kd1 {[%emt 0:00:52]} Qd5+ {[%emt 0:00:25]} 71. Qd2 {[%emt 0:00:30]} Qc5 {[%emt 0:00:29]} 72. Qd3 {[%emt 0:00:30]} Kg7 {[%emt 0:00:37]} 73. Qf3 {[%emt 0:00:40]} Qd4+ {[%emt 0:00:29]} 1/2-1/2

[Event "22nd Hoogeveen Open 2018"]
[Site "Hoogeveen"]
[Date "2018.10.24"]
[Round "6"]
[White "De Vries, Emma"]
[Black "Jelic, Bruno"]
[Result "0-1"]
[ECO "B06"]
[WhiteElo "1905"]
[BlackElo "2076"]
[Annotator "NA"]
[PlyCount "68"]
[EventDate "2018.10.20"]
[EventType "swiss"]
[EventCountry "NED"]
[SourceTitle "playchess.com"]
[Source "ChessBase"]
[SourceQuality "1"]
[TimeControl "40/5400+30:1800+30"]

1. e4 {[%emt 0:00:00]} g6 {[%emt 0:00:00]} 2. d4 {[%emt 0:00:00]} d6 {[%emt 0:00:11]} 3. Nc3 {[%emt 0:00:00]} Bg7 {[%emt 0:00:34]} 4. Be3 {[%emt 0:00:05]} a6 {[%emt 0:00:22]} 5. Qd2 {[%emt 0:01:57]} b5 {[%emt 0:00:31]} 6. a3 {[%emt 0:07:08]} Bb7 {[%emt 0:01:03]} 7. f3 {[%emt 0:02:35]} Nd7 {[%emt 0:00:49] LiveBook: 10 Games} 8. g4 {[%emt 0:03:29]} Rc8 {[%emt 0:05:34]} 9. Bg2 $11 {[%emt 0:04:19]} c5 {[%emt 0:03:19]} 10. Nge2 {[%emt 0:01:35]} cxd4 {[%emt 0:05:18]} 11. Bxd4 {[%emt 0:02:27]} Ngf6 {[%emt 0:08:34]} 12. h4 {[%emt 0:08:52]} O-O {[%emt 0:13:07]} 13. g5 {[%emt 0:10:05]} Nh5 {[%emt 0:01:45]} 14. Bxg7 {[%emt 0:00:15]} Nxg7 {[%emt 0:02:36]} 15. Ng3 {[%emt 0:09:41]} Ne5 {[%emt 0:01:22]} 16. O-O-O {[%emt 0:08:05]} Nc4 {[%emt 0:02:01]} 17. Qe1 {[%emt 0:01:51]} Qc7 {[%emt 0:04:21]} 18. Bh3 {[%emt 0:02:53]} e6 {[%emt 0:00:51]} 19. Rd3 {[%emt 0:02:18]} Qc6 {[%emt 0:03:01]} 20. Nge2 {[%emt 0:03:53]} Ne5 {[%emt 0:05:21]} 21. Re3 {[%emt 0:04:25]} Qc5 {[%emt 0:01:33]} 22. Qg1 {[%emt 0:07:17]} b4 {[%emt 0:02:33]} 23. axb4 {[%emt 0:00:09]} Qxb4 {[%emt 0:00:11]} 24. Nb1 {[%emt 0:03:08]} Nxf3 {[%emt 0:10:08]} 25. Rxf3 {[%emt 0:00:23]} Bxe4 {[%emt 0:04:27]} 26. Nd4 {[%emt 0:00:00]} Bxf3 {[%emt 0:03:02]} 27. Nxf3 {[%emt 0:00:00]} Rb8 {[%emt 0:01:12]} 28. Qd4 {[%emt 0:01:00]} Rfc8 {[%emt 0:03:33]} 29. Rd1 {[%emt 0:02:41]} Rc4 {[%emt 0:01:14]} 30. Qxd6 {[%emt 0:02:25]} Qxb2+ {[%emt 0:00:21]} 31. Kd2 {[%emt 0:00:01]} Rxc2+ {[%emt 0:05:37]} 32. Ke3 {[%emt 0:00:52]} Re2+ {[%emt 0:02:35]} 33. Kf4 {[%emt 0:00:09]} Nh5+ {[%emt 0:00:49]} 34. Kg4 {[%emt 0:00:05]} Re4+ {[%emt 0:00:45]} 0-1

[Event "22nd Hoogeveen Open 2018"]
[Site "Hoogeveen"]
[Date "2018.10.24"]
[Round "6"]
[White "Bleeker, Kasper"]
[Black "Achuthan, Dylan"]
[Result "0-1"]
[ECO "B22"]
[WhiteElo "1891"]
[BlackElo "1751"]
[Annotator "NA"]
[PlyCount "138"]
[EventDate "2018.10.20"]
[EventType "swiss"]
[EventCountry "NED"]
[SourceTitle "playchess.com"]
[Source "ChessBase"]
[SourceQuality "1"]
[TimeControl "40/5400+30:1800+30"]

1. e4 {[%emt 0:00:00]} c5 {[%emt 0:00:00]} 2. c3 {[%emt 0:00:00]} d5 {[%emt 0:00:00]} 3. exd5 {[%emt 0:00:26]} Qxd5 {[%emt 0:00:00]} 4. d4 {[%emt 0:00:10]} Nc6 {[%emt 0:00:06]} 5. Nf3 {[%emt 0:00:16]} Bg4 {[%emt 0:00:06]} 6. Be2 {[%emt 0:01:56]} Nf6 {[%emt 0:00:35]} 7. Be3 {[%emt 0:00:44]} e6 {[%emt 0:01:02]} 8. Na3 {[%emt 0:00:31]} Be7 {[%emt 0:01:57]} 9. h3 {[%emt 0:01:22]} Bh5 {[%emt 0:00:52]} 10. O-O {[%emt 0:03:57]} O-O {[%emt 0:00:37]} 11. Nc2 {[%emt 0:02:52]} Rfd8 $11 {[%emt 0:02:18]} 12. dxc5 {[%emt 0:16:40]} Bg6 {[%emt 0:19:09]} 13. Bd4 {[%emt 0:15:44]} e5 {[%emt 0:12:04]} 14. Be3 {[%emt 0:14:49]} Qe4 {[%emt 0:03:11]} 15. Ncd4 {[%emt 0:01:54]} exd4 {[%emt 0:01:11]} 16. cxd4 {[%emt 0:06:21]} Rac8 {[%emt 0:29:26]} 17. Qb3 {[%emt 0:07:13]} h6 {[%emt 0:10:22]} 18. Rac1 {[%emt 0:00:58]} Nd5 {[%emt 0:05:07]} 19. Nd2 {[%emt 0:08:48]} Nxd4 {[%emt 0:04:56]} 20. Bxd4 {[%emt 0:08:59]} Qxd4 {[%emt 0:00:28]} 21. Bg4 {[%emt 0:01:07]} f5 {[%emt 0:01:05]} 22. Bf3 {[%emt 0:00:31]} Bf7 {[%emt 0:00:59]} 23. Nc4 {[%emt 0:00:59]} Qf6 {[%emt 0:01:28]} 24. Qxb7 {[%emt 0:00:49]} Bxc5 {[%emt 0:01:32]} 25. Rfd1 {[%emt 0:00:22]} Nf4 {[%emt 0:01:06]} 26. Nd6 {[%emt 0:01:27]} Rb8 {[%emt 0:01:29]} 27. Qxf7+ {[%emt 0:03:24]} Qxf7 {[%emt 0:00:28]} 28. Nxf7 {[%emt 0:00:06]} Rxd1+ {[%emt 0:00:46]} 29. Bxd1 {[%emt 0:00:26]} Bxf2+ {[%emt 0:01:17]} 30. Kf1 {[%emt 0:00:55]} Rxb2 {[%emt 0:00:50]} 31. Bb3 {[%emt 0:00:36]} Be3 {[%emt 0:00:30]} 32. Rc8+ {[%emt 0:00:42]} Kh7 {[%emt 0:00:02]} 33. Rh8+ {[%emt 0:00:46]} Kg6 {[%emt 0:00:01]} 34. Ne5+ {[%emt 0:00:01]} Kf6 {[%emt 0:01:03]} 35. Nf3 {[%emt 0:01:04]} Rb1+ {[%emt 0:00:54]} 36. Ne1 {[%emt 0:00:01]} Nd3 {[%emt 0:00:29]} 37. Ke2 {[%emt 0:00:18]} Nxe1 {[%emt 0:00:28]} 38. Kxe3 {[%emt 0:00:03]} Nxg2+ {[%emt 0:00:08]} 39. Kf2 {[%emt 0:00:55]} Nf4 {[%emt 0:00:51]} 40. h4 {[%emt 0:00:41]} Rb2+ {[%emt 0:00:35]} 41. Kf3 {[%emt 0:30:12]} Ng6 {[%emt 0:30:18]} 42. Ra8 {[%emt 0:00:00]} Nxh4+ {[%emt 0:00:00]} 43. Kg3 {[%emt 0:00:00]} Kg5 {[%emt 0:00:00]} 44. Rxa7 {[%emt 0:00:00]} g6 {[%emt 0:00:00]} 45. Ra5 {[%emt 0:04:24]} Rg2+ {[%emt 0:00:00]} 46. Kh3 {[%emt 0:00:00]} Rg1 {[%emt 0:00:00]} 47. Bd5 {[%emt 0:00:00]} Re1 {[%emt 0:00:00]} 48. Rc5 {[%emt 0:00:00]} Re3+ {[%emt 0:00:03]} 49. Kh2 {[%emt 0:00:00]} Re5 {[%emt 0:00:11]} 50. a4 {[%emt 0:00:00]} Nf3+ {[%emt 0:02:17]} 51. Kg2 {[%emt 0:00:00]} Ne1+ {[%emt 0:00:46]} 52. Kf1 {[%emt 0:00:00]} Nd3 {[%emt 0:01:08]} 53. Rb5 {[%emt 0:00:00]} Kh4 {[%emt 0:01:06]} 54. a5 {[%emt 0:00:00]} Kg3 {[%emt 0:00:53]} 55. Rb1 {[%emt 0:00:00]} Rxd5 {[%emt 0:00:33]} 56. a6 {[%emt 0:00:00]} Ra5 {[%emt 0:00:44]} 57. Rb3 {[%emt 0:00:00]} Rxa6 {[%emt 0:00:20]} 58. Rxd3+ {[%emt 0:00:00]} Kg4 {[%emt 0:00:11]} 59. Rb3 {[%emt 0:00:00]} f4 {[%emt 0:00:08]} 60. Rb4 {[%emt 0:00:00]} Ra2 {[%emt 0:00:39]} 61. Kg1 {[%emt 0:00:00]} g5 {[%emt 0:00:58]} 62. Rb3 {[%emt 0:00:00]} h5 {[%emt 0:00:18]} 63. Rb4 {[%emt 0:00:00]} h4 {[%emt 0:00:12]} 64. Rb3 {[%emt 0:00:00]} f3 {[%emt 0:00:16]} 65. Rb4+ {[%emt 0:00:00]} Kg3 {[%emt 0:00:05]} 66. Rb1 {[%emt 0:00:00]} h3 {[%emt 0:00:36]} 67. Rc1 {[%emt 0:00:00]} Rh2 {[%emt 0:00:28]} 68. Rc3 {[%emt 0:00:00]} Re2 {[%emt 0:00:26]} 69. Kf1 {[%emt 0:00:00]} Rf2+ {[%emt 0:00:22]} 0-1

[Event "22nd Hoogeveen Open 2018"]
[Site "Hoogeveen"]
[Date "2018.10.24"]
[Round "6"]
[White "Kutchoukov, Daniel"]
[Black "Pham, Khoi"]
[Result "0-1"]
[ECO "B23"]
[WhiteElo "1882"]
[BlackElo "2153"]
[Annotator "NA"]
[PlyCount "100"]
[EventDate "2018.10.20"]
[EventType "swiss"]
[EventCountry "NED"]
[SourceTitle "playchess.com"]
[Source "ChessBase"]
[SourceQuality "1"]
[TimeControl "40/5400+30:1800+30"]

1. e4 {[%emt 0:00:00]} c5 {[%emt 0:00:00]} 2. Nc3 {[%emt 0:00:00]} Nc6 {[%emt 0:00:00]} 3. Bb5 {[%emt 0:00:00]} Nd4 {[%emt 0:00:00]} 4. Bc4 {[%emt 0:00:00]} e6 {[%emt 0:00:00]} 5. Nge2 {[%emt 0:00:00]} Nf6 {[%emt 0:00:08]} 6. O-O {[%emt 0:00:00]} a6 {[%emt 0:00:04]} 7. d3 {[%emt 0:00:00]} b5 {[%emt 0:00:05]} 8. Bb3 {[%emt 0:00:00]} Nxb3 {[%emt 0:00:10]} 9. axb3 {[%emt 0:00:00]} Bb7 {[%emt 0:00:10]} 10. Bg5 {[%emt 0:00:17]} h6 {[%emt 0:01:12]} 11. Bd2 {[%emt 0:00:03]} d5 {[%emt 0:01:47]} 12. e5 {[%emt 0:01:17]} d4 {[%emt 0:00:49]} (12... Ng4 $15 {stays ahead.}) 13. exf6 {[%emt 0:18:24]} dxc3 {[%emt 0:00:31]} 14. fxg7 {[%emt 0:02:02]} ({Much worse is} 14. bxc3 $6 Qxf6 15. Ng3 Bd6 $11) ({Much weaker is} 14. Bxc3 $6 gxf6 15. f3 h5 $11) 14... Bxg7 {[%emt 0:00:07]} 15. Bxc3 $16 {[%emt 0:02:27]} Rg8 {[%emt 0:07:02]} 16. f3 {[%emt 0:04:31]} Qg5 {[%emt 0:03:36]} 17. Ng3 {[%emt 0:02:18]} h5 {[%emt 0:05:29]} 18. Qe2 {[%emt 0:16:27]} Kf8 {[%emt 0:11:21]} 19. Rae1 {[%emt 0:04:56]} Rd8 {[%emt 0:11:03]} 20. Bxg7+ {[%emt 0:05:05]} Rxg7 {[%emt 0:00:31]} 21. Qe5 {[%emt 0:01:25]} h4 {[%emt 0:05:13]} 22. Qxg5 {[%emt 0:03:14]} Rxg5 {[%emt 0:00:07]} 23. Ne4 {[%emt 0:05:22]} Rgd5 {[%emt 0:03:52]} 24. f4 {[%emt 0:07:04]} Rf5 {[%emt 0:09:38]} 25. Re3 {[%emt 0:10:34]} c4 {[%emt 0:01:52]} 26. g4 {[%emt 0:03:46]} hxg3 {[%emt 0:02:00]} 27. Nxg3 {[%emt 0:00:36]} Rc5 {[%emt 0:01:50]} 28. bxc4 {[%emt 0:03:36]} bxc4 {[%emt 0:00:25]} 29. dxc4 {[%emt 0:00:23]} Rxc4 {[%emt 0:00:49]} 30. c3 {[%emt 0:00:07]} Rd2 {[%emt 0:01:27]} 31. Re2 {[%emt 0:00:26]} Rd3 {[%emt 0:01:00]} 32. f5 {[%emt 0:01:02]} exf5 {[%emt 0:02:14]} 33. Nxf5 {[%emt 0:02:46]} Rg4+ {[%emt 0:00:17]} 34. Kf2 {[%emt 0:02:33]} Rf4+ {[%emt 0:02:10]} 35. Ke1 {[%emt 0:00:36]} Rd1+ {[%emt 0:00:13]} 36. Kxd1 {[%emt 0:00:18]} Rxf1+ {[%emt 0:00:04]} 37. Kd2 {[%emt 0:00:52]} Rxf5 {[%emt 0:00:05]} 38. Kd3 {[%emt 0:03:36]} Bd5 {[%emt 0:02:24]} 39. Kd4 {[%emt 0:01:26]} Be6 {[%emt 0:00:21]} 40. Ke4 {[%emt 0:00:56]} Rh5 {[%emt 0:01:20]} 41. Rd2 {[%emt 0:30:34]} Ke7 {[%emt 0:30:10]} 42. Kf4 {[%emt 0:00:00]} Kf6 {[%emt 0:00:00]} 43. Ke4 {[%emt 0:00:00]} Rh4+ {[%emt 0:00:00]} 44. Kf3 {[%emt 0:00:00]} Ke5 {[%emt 0:00:00]} 45. Re2+ {[%emt 0:00:00]} Kf5 {[%emt 0:00:00]} 46. Kg3 {[%emt 0:00:00]} Rg4+ {[%emt 0:00:00]} 47. Kf3 {[%emt 0:00:00]} Bd5+ {[%emt 0:00:00]} 48. Kf2 {[%emt 0:00:00]} Rg2+ {[%emt 0:00:00]} 49. Ke3 {[%emt 0:00:00]} Rxe2+ {[%emt 0:00:00]} 50. Kxe2 {[%emt 0:00:00]} Ke5 {[%emt 0:01:50]} 0-1

[Event "22nd Hoogeveen Open 2018"]
[Site "Hoogeveen"]
[Date "2018.10.24"]
[Round "6"]
[White "Van der Hagen, Loek"]
[Black "Biermann, Florian"]
[Result "1-0"]
[ECO "B99"]
[WhiteElo "1820"]
[BlackElo "2024"]
[Annotator "NA"]
[PlyCount "97"]
[EventDate "2018.10.20"]
[EventType "swiss"]
[EventCountry "NED"]
[SourceTitle "playchess.com"]
[Source "ChessBase"]
[SourceQuality "1"]
[TimeControl "40/5400+30:1800+30"]

1. e4 {[%emt 0:00:00]} c5 {[%emt 0:00:00]} 2. Nf3 {[%emt 0:00:00]} d6 {[%emt 0:00:00]} 3. d4 {[%emt 0:00:00]} cxd4 {[%emt 0:00:00]} 4. Nxd4 {[%emt 0:00:00]} Nf6 {[%emt 0:00:00]} 5. Nc3 {[%emt 0:00:00]} a6 {[%emt 0:00:02]} 6. Bg5 {[%emt 0:00:11]} e6 {[%emt 0:00:21]} 7. f4 {[%emt 0:00:07]} h6 {[%emt 0:00:04]} 8. Bh4 {[%emt 0:00:28]} Be7 {[%emt 0:00:21]} 9. Qf3 {[%emt 0:00:07]} Nbd7 {[%emt 0:00:16]} 10. O-O-O {[%emt 0:00:08]} Qc7 {[%emt 0:00:06]} 11. Bd3 {[%emt 0:00:17]} g5 {[%emt 0:00:35]} 12. fxg5 {[%emt 0:00:09]} Ne5 {[%emt 0:00:12]} 13. Qe2 {[%emt 0:00:05]} Nfg4 {[%emt 0:01:18]} 14. h3 {[%emt 0:00:32]} hxg5 {[%emt 0:00:36]} 15. Bg3 {[%emt 0:00:23] LiveBook: 22 Games} Nf6 {[%emt 0:15:19]} 16. Nf3 $11 {[%emt 0:07:14]} Nh5 {[%emt 0:07:56]} 17. Bh2 {[%emt 0:19:27]} Bd7 {[%emt 0:04:16]} 18. Nxe5 {[%emt 0:01:53]} dxe5 {[%emt 0:01:06]} 19. Qf2 {[%emt 0:07:09]} Nf4 {[%emt 0:06:35]} 20. Rhf1 {[%emt 0:05:23]} f6 {[%emt 0:14:55]} 21. Kb1 {[%emt 0:07:36]} Rc8 {[%emt 0:09:50]} 22. Ne2 {[%emt 0:15:29]} Ba4 {[%emt 0:06:37]} 23. Rc1 {[%emt 0:08:50]} Qa5 {[%emt 0:08:51]} 24. Nxf4 {[%emt 0:10:58]} gxf4 {[%emt 0:02:36]} 25. g3 {[%emt 0:03:56]} Bc5 {[%emt 0:04:34]} 26. Qe2 {[%emt 0:00:32]} Rc6 {[%emt 0:01:27]} 27. Bc4 {[%emt 0:06:51]} Rb6 {[%emt 0:04:16]} 28. Bb3 {[%emt 0:01:44]} Bb5 {[%emt 0:00:23]} 29. Qg4 {[%emt 0:01:05]} Rf8 {[%emt 0:04:20]} 30. Qg6+ {[%emt 0:01:34]} Ke7 {[%emt 0:00:26]} 31. Rh1 {[%emt 0:01:05]} Bc4 {[%emt 0:02:12]} 32. gxf4 {[%emt 0:00:57]} Bd4 {[%emt 0:00:18]} 33. fxe5 {[%emt 0:00:52]} fxe5 {[%emt 0:02:03]} 34. Qg7+ {[%emt 0:00:38]} Rf7 {[%emt 0:00:31]} 35. Qg5+ {[%emt 0:00:04]} Kd7 {[%emt 0:00:21]} 36. Rhd1 {[%emt 0:00:45]} Bxb3 {[%emt 0:02:30]} 37. Rxd4+ {[%emt 0:00:33]} Bd5 {[%emt 0:00:52]} 38. Rxd5+ {[%emt 0:01:08]} exd5 {[%emt 0:00:21]} 39. Qxe5 {[%emt 0:00:28]} Re6 {[%emt 0:00:33]} 40. Qb8 {[%emt 0:00:35]} Qd8 {[%emt 0:01:59]} 41. exd5 {[%emt 0:03:16]} Rb6 {[%emt 0:02:20]} 42. Qe5 {[%emt 0:01:18]} Rbf6 {[%emt 0:02:40]} 43. a3 {[%emt 0:02:47]} Qb6 {[%emt 0:00:25]} 44. Re1 {[%emt 0:00:58]} Qd8 {[%emt 0:01:23]} 45. Qd4 {[%emt 0:10:25]} Qb6 {[%emt 0:04:11]} 46. Qe4 {[%emt 0:01:29]} Qd8 {[%emt 0:01:13]} 47. d6 {[%emt 0:00:26]} Kc8 {[%emt 0:01:14]} 48. Qc4+ {[%emt 0:01:41]} Kd7 {[%emt 0:02:46]} 49. Qa4+ {[%emt 0:00:30]} 1-0

[Event "22nd Hoogeveen Open 2018"]
[Site "Hoogeveen"]
[Date "2018.10.25"]
[Round "7"]
[White "Miedema, David"]
[Black "Blagojevic, Tijana"]
[Result "1-0"]
[ECO "D02"]
[WhiteElo "2379"]
[BlackElo "2232"]
[Annotator "ChessBase"]
[PlyCount "97"]
[EventDate "2018.10.20"]
[EventType "swiss"]
[EventCountry "NED"]
[SourceTitle "playchess.com"]
[Source "ChessBase"]
[SourceQuality "1"]
[TimeControl "40/5400+30:1800+30"]

1. d4 {[%emt 0:00:00]} d5 {[%emt 0:00:00]} 2. Nf3 {[%emt 0:00:00]} Nf6 {[%emt 0:00:00]} 3. Bf4 {[%emt 0:00:00]} c5 {[%emt 0:00:03]} 4. e3 {[%emt 0:00:32]} Nc6 {[%emt 0:04:10]} 5. Nbd2 {[%emt 0:00:07]} Qb6 {[%emt 0:00:35]} 6. dxc5 {[%emt 0:00:06]} Qxb2 {[%emt 0:00:04]} 7. Rb1 {[%emt 0:03:49]} Qc3 {[%emt 0:00:03]} 8. Be2 {[%emt 0:11:08]} e6 {[%emt 0:08:01]} 9. O-O {[%emt 0:00:00]} Be7 {[%emt 0:03:32]} 10. Rb5 {[%emt 0:02:52]} Ne4 {[%emt 0:08:13]} 11. Nxe4 {[%emt 0:01:44]} dxe4 {[%emt 0:00:05]} 12. Nd2 {[%emt 0:00:03]} f5 {[%emt 0:05:02]} 13. Nc4 {[%emt 0:00:30]} O-O {[%emt 0:05:06]} 14. Bd6 {[%emt 0:02:41]} Rd8 {[%emt 0:04:17]} 15. Rb3 {[%emt 0:19:48]} Qf6 {[%emt 0:04:05]} 16. f3 {[%emt 0:00:05]} exf3 {[%emt 0:09:08]} 17. Bxf3 {[%emt 0:00:13]} e5 {[%emt 0:01:12]} 18. Bd5+ {[%emt 0:05:55]} Kh8 {[%emt 0:00:04]} 19. Rd3 {[%emt 0:04:14]} Be6 {[%emt 0:04:02]} 20. e4 {[%emt 0:18:52]} f4 {[%emt 0:21:13]} 21. Qb1 {[%emt 0:00:45]} b6 {[%emt 0:07:46]} 22. Qb5 {[%emt 0:08:36]} Bxd5 {[%emt 0:01:38]} 23. exd5 {[%emt 0:02:21]} Bxd6 {[%emt 0:00:28]} 24. Nxd6 {[%emt 0:00:47]} Nd4 {[%emt 0:00:52]} 25. Qc4 {[%emt 0:01:47]} bxc5 {[%emt 0:00:16]} 26. Nb7 {[%emt 0:01:00]} e4 {[%emt 0:02:45]} 27. Rh3 {[%emt 0:04:12]} Rdc8 {[%emt 0:08:20]} 28. c3 {[%emt 0:00:10]} Qb6 {[%emt 0:01:15]} 29. cxd4 {[%emt 0:00:57]} cxd4 {[%emt 0:00:06]} 30. Qb3 {[%emt 0:00:02]} d3+ {[%emt 0:00:21]} 31. Qxb6 {[%emt 0:00:03]} axb6 {[%emt 0:00:02]} 32. Nd6 {[%emt 0:00:05]} Rc2 {[%emt 0:01:03]} 33. Nxe4 {[%emt 0:00:26]} Raxa2 {[%emt 0:00:29]} 34. Nf2 {[%emt 0:00:28]} d2 {[%emt 0:00:15]} 35. Rd3 {[%emt 0:00:04]} Rc1 {[%emt 0:00:54]} 36. Nd1 {[%emt 0:00:03]} g5 {[%emt 0:00:14]} 37. d6 {[%emt 0:00:05]} Rc8 {[%emt 0:00:01]} 38. Rf2 {[%emt 0:01:23]} Kg7 {[%emt 0:00:04]} 39. Rfxd2 {[%emt 0:00:09]} Rxd2 {[%emt 0:00:02]} 40. Rxd2 {[%emt 0:00:04]} Kf6 {[%emt 0:00:27]} 41. Nc3 {[%emt 0:32:31]} Rd8 {[%emt 0:30:51]} 42. Rb2 {[%emt 0:05:37]} Ke5 {[%emt 0:02:07]} 43. Rxb6 {[%emt 0:00:16]} g4 {[%emt 0:00:03]} 44. Rb5+ {[%emt 0:02:33]} Kd4 {[%emt 0:00:45]} 45. Ne2+ {[%emt 0:00:05]} Ke4 {[%emt 0:00:32]} 46. Kf2 {[%emt 0:01:55]} f3 {[%emt 0:01:40]} 47. Ng3+ {[%emt 0:00:19]} Kd3 {[%emt 0:00:20]} 48. gxf3 {[%emt 0:00:14]} gxf3 {[%emt 0:00:07]} 49. Rd5+ {[%emt 0:00:06]} 1-0